fUST/lending_fUST_20251018
["ID","MTS","AMOUNT","RATE_DAILY","PERIOD"]
[391778883,1760801434677,-166.96485832,0.0002576,2]
[391778884,1760801434687,-406.24230485,0.00025784,2]
[391778885,1760801434697,-151.0,0.00025786,2]
[391778886,1760801434709,-30308.1069803,0.00025839,2]
[391778887,1760801434718,-3445.17228489,0.00025839,2]
[391778888,1760801434728,-193.91844697,0.0002584,2]
[391778889,1760801434737,-374.98897096,0.00025941,2]
[391778890,1760801434747,-351.52503591,0.00025946,2]
[391778891,1760801434756,-160.0,0.00026,2]
[391778892,1760801434766,-247.62816002,0.00026017,2]
[391778893,1760801434776,-445.73068803,0.00026017,2]
[391778894,1760801434786,-791.61770194,0.00026017,2]
[391778895,1760801434796,-158.4784229,0.0002621,2]
[391778896,1760801434805,-494.48,0.00026211,3]
[391778897,1760801434815,-223.72410535,0.00026221,2]
[391778898,1760801434824,-504.07427445,0.00026221,2]
[391778899,1760801434834,-260.0,0.00026548,2]
[391778900,1760801434846,-164.82,0.00026565,3]
[391778901,1760801434856,-329.63,0.00026666,3]
[391778902,1760801434867,-398.338578,0.00026676,2]
[391778903,1760801434876,-502.83,0.00026839,3]
[391778904,1760801434885,-167.6,0.00026998,3]
[391778905,1760801434895,-471.65099282,0.00026998,2]
[391778906,1760801434905,-508.66460609,0.00027,3]
[391778907,1760801434915,-335.2,0.00027038,3]
[391778908,1760801434926,-670.41,0.00027048,3]
[391778909,1760801434937,-1340.81,0.00027058,3]
[391778910,1760801434948,-2681.62,0.00027068,3]
[391778911,1760801434957,-500.0,0.00027073,2]
[391778912,1760801434967,-500.0,0.00027073,2]
[391778913,1760801434978,-500.0,0.00027073,2]
[391778914,1760801434987,-500.0,0.00027073,2]
[391778915,1760801434996,-5363.24,0.00027078,3]
[391778916,1760801435005,-2172.46558801,0.00027088,2]
[391778917,1760801435019,-334.8019578,0.00027088,2]
[391778932,1760801439013,-500.0,0.00025656,2]
[391778933,1760801439025,-500.0,0.00025656,2]
[391778934,1760801439036,-500.0,0.00025656,2]
[391778935,1760801439047,-500.0,0.00025656,2]
[391778936,1760801439058,-500.0,0.00025656,2]
[391778937,1760801439069,-635.26934183,0.00025656,2]
[391778938,1760801439080,-500.0,0.00025656,2]
[391778939,1760801439091,-500.0,0.00025656,2]
[391778940,1760801439102,-500.0,0.00025656,2]
[391778941,1760801439114,-500.0,0.00025656,2]
[391778942,1760801439125,-500.0,0.00025656,2]
[391778943,1760801439136,-500.0,0.00025656,2]
[391778944,1760801439147,-500.0,0.00025656,2]
[391778945,1760801439157,-500.0,0.00025656,2]
[391778946,1760801439168,-500.0,0.00025656,2]
[391778947,1760801439179,-446.06379051,0.00025656,2]
[391778948,1760801439190,-438.92897877,0.00025656,2]
[391778949,1760801439201,-500.0,0.00025656,2]
[391778950,1760801439212,-500.0,0.00025656,2]
[391778951,1760801439222,-500.0,0.00025656,2]
[391778952,1760801439233,-269.26372486,0.00025656,2]
[391778953,1760801439244,-406.52427759,0.00025656,2]
[391778954,1760801439255,-500.0,0.00025656,2]
[391778955,1760801439267,-500.0,0.00025656,2]
[391778956,1760801439278,-500.0,0.00025656,2]
[391778957,1760801439289,-500.0,0.00025656,2]
[391778958,1760801439300,-538.42400837,0.00025656,2]
[391778959,1760801439311,-500.0,0.00025656,2]
[391778960,1760801439323,-500.0,0.00025656,2]
[391778961,1760801439334,-500.0,0.00025656,2]
[391778962,1760801439345,-500.0,0.00025656,2]
[391778963,1760801439356,-500.0,0.00025656,2]
[391778964,1760801439367,-500.0,0.00025656,2]
[391778965,1760801439377,-500.0,0.00025656,2]
[391778966,1760801439389,-500.0,0.00025656,2]
[391778967,1760801439400,-500.0,0.00025656,2]
[391778968,1760801439411,-500.0,0.00025656,2]
[391778969,1760801439425,-500.0,0.00025656,2]
[391778970,1760801439436,-500.0,0.00025656,2]
[391778971,1760801439447,-500.0,0.00025656,2]
[391778972,1760801439458,-500.0,0.00025656,2]
[391778973,1760801439470,-500.0,0.00025656,2]
[391778974,1760801439481,-500.0,0.00025656,2]
[391778975,1760801439492,-500.0,0.00025656,2]
[391778976,1760801439502,-500.0,0.00025656,2]
[391778977,1760801439512,-500.0,0.00025656,2]
[391778978,1760801439524,-500.0,0.00025656,2]
[391778979,1760801439534,-500.0,0.00025656,2]
[391778980,1760801439545,-500.0,0.00025656,2]
[391778981,1760801439557,-500.0,0.00025656,2]
[391778982,1760801439567,-500.0,0.00025656,2]
[391778983,1760801439578,-240.55000905,0.00025656,2]
[391778984,1760801439588,-500.0,0.00025656,2]
[391778985,1760801439598,-500.0,0.00025656,2]
[391778986,1760801439609,-500.0,0.00025656,2]
[391778987,1760801439619,-155.542732,0.00025657,7]
[391778988,1760801439629,-259.60333,0.00025657,7]
[391778989,1760801439639,-259.60333,0.00025657,7]
[391778990,1760801439649,-259.60333,0.00025657,7]
[391778991,1760801439658,-259.60333,0.00025657,7]
[391778992,1760801439669,-259.60333,0.00025657,7]
[391778993,1760801439680,-259.60333,0.00025657,7]
[391778994,1760801439690,-259.60333,0.00025657,7]
[391778995,1760801439701,-259.60333,0.00025657,7]
[391778996,1760801439712,-151.0,0.00025657,7]
[391778997,1760801439722,-259.60333,0.00025657,7]
[391778998,1760801439732,-259.60333,0.00025657,7]
[391778999,1760801439743,-259.60333,0.00025657,7]
[391779000,1760801439753,-259.60333,0.00025657,7]
[391779001,1760801439766,-27800.83943449,0.00027088,2]
[391779002,1760801439777,-3445.17228489,0.00027088,2]
[391779003,1760801439788,-360.0,0.00027096,2]
[391779004,1760801439799,-250.0,0.00027097,2]
[391779005,1760801439810,-250.0,0.00027097,2]
[391779006,1760801439821,-250.0,0.00027097,2]
[391779007,1760801439832,-250.0,0.00027097,2]
[391779008,1760801439842,-250.0,0.00027097,2]
[391779009,1760801439853,-250.0,0.00027097,2]
[391779010,1760801439864,-30308.1069803,0.00027098,2]
[391779011,1760801439875,-3445.17228489,0.00027098,2]
[391779012,1760801439886,-250.0,0.00027107,2]
[391779013,1760801439896,-250.0,0.00027107,2]
[391779014,1760801439907,-28203.7855517,0.00027108,2]
[391779015,1760801439917,-28203.7855519,0.00027108,2]
[391779016,1760801439931,-333.1090207,0.00027108,2]
[391779017,1760801439941,-6749.6432152,0.00027108,2]
[391779018,1760801439951,-5582.71363687,0.00027113,2]
[391779019,1760801439973,-157.71831543,0.00027149,2]
[391779020,1760801439985,-150.0,0.00027149,2]
[391779021,1760801439996,-30308.1069803,0.0002717,2]
[391779022,1760801440007,-3445.17228489,0.0002717,2]
[391779023,1760801440019,-166.48,0.00027173,2]
[391779024,1760801440030,-150.0,0.00027173,2]
[391779025,1760801440041,-19312.07,0.000272,7]
[391779026,1760801440052,-420.0,0.00027268,2]
[391779027,1760801440063,-177.2147831,0.000273,2]
[391779028,1760801440074,-160.66169411,0.000273,2]
[391779029,1760801440085,-217.95274215,0.000273,2]
[391779030,1760801440096,-1120.48431376,0.00027312,4]
[391779031,1760801440106,-160.0,0.0002732,2]
[391779032,1760801440117,-155.0,0.00027384,2]
[391779033,1760801440128,-150.0,0.00027397,5]
[391779034,1760801440139,-1958.19,0.000274,2]
[391779035,1760801440149,-177.2147831,0.000276,2]
[391779036,1760801440160,-431.05081208,0.00027613,2]
[391779037,1760801440172,-775.89146174,0.00027613,2]
[391779038,1760801440184,-1379.36259865,0.00027613,2]
[391779039,1760801440195,-2153.09880633,0.00027613,2]
[391779040,1760801440206,-265.56538735,0.00027613,2]
[391779041,1760801440218,-478.01769724,0.00027613,2]
[391779042,1760801440228,-1006.67489646,0.00027621,2]
[391779043,1760801440239,-1000.0,0.00027621,5]
[391779044,1760801440249,-1000.0,0.00027621,5]
[391779045,1760801440259,-500.0,0.00027621,5]
[391779046,1760801440271,-460.0,0.00027644,2]
[391779047,1760801440281,-849.80923953,0.00027666,2]
[391779048,1760801440292,-179.65864857,0.00027684,2]
[391779049,1760801440302,-250.0,0.00027721,5]
[391779050,1760801440313,-178.835,0.00027843,17]
[391779051,1760801440323,-177.2147831,0.000279,2]
[391779052,1760801440334,-329.64,0.00027935,3]
[391779053,1760801440344,-250.0,0.00027945,5]
[391779054,1760801440355,-500.0,0.00027973,5]
[391779055,1760801440365,-90924.3209409,0.0002798,2]
[391779056,1760801440376,-10335.5168547,0.0002798,2]
[391779058,1760801440386,-100000.0,0.0002799,2]
[391779060,1760801440397,-659.26,0.00028036,3]
[391779062,1760801440407,-376.23954524,0.00028148,4]
[391779066,1760801440420,-1500.0,0.00028168,5]
[391779068,1760801440433,-1500.0,0.00028168,5]
[391779070,1760801440444,-560.0,0.00028192,2]
[391779072,1760801440454,-4784.2,0.00028219,2]
[391779074,1760801440465,-720.0,0.00028246,30]
[391779076,1760801440475,-350.0,0.00028268,5]
[391779078,1760801440485,-823.77908852,0.00028288,2]
[391779080,1760801440497,-335.2,0.00028368,3]
[391779082,1760801440507,-670.4,0.00028408,3]
[391779084,1760801440519,-1340.82,0.00028418,3]
[391779086,1760801440529,-2681.62,0.00028428,3]
[391779088,1760801440539,-5363.24,0.00028438,3]
[391779089,1760801440549,-30308.1069803,0.00028448,2]
[391779090,1760801440560,-3445.17228489,0.00028448,2]
[391779091,1760801440570,-10726.48,0.00028448,3]
[391779092,1760801440580,-471.6509928,0.00028474,2]
[391779093,1760801440591,-157.649122,0.00028478,30]
[391779094,1760801440601,-350.0,0.00028493,5]
[391779095,1760801440613,-508.62,0.0002852,4]
[391779096,1760801440625,-1001.62621845,0.00028521,5]
[391779097,1760801440636,-500.0,0.00028701,7]
[391779098,1760801440646,-2000.0,0.00028716,5]
[391779099,1760801440657,-2000.0,0.00028716,5]
[391779100,1760801440667,-200.0,0.0002874,2]
[391779101,1760801440677,-402.78104431,0.0002879,30]
[391779102,1760801440687,-302.13637244,0.00028816,5]
[391779103,1760801440698,-854.2589148,0.00028836,2]
[391779104,1760801440709,-4690.27,0.000289,2]
[391779105,1760801440719,-300.23620823,0.00028958,2]
[391779106,1760801440729,-500.0,0.00029027,7]
[391779107,1760801440739,-450.0,0.00029041,5]
[391779108,1760801440750,-150.99999965,0.0002905,2]
[391779109,1760801440760,-500.0,0.000291,5]
[391779110,1760801440772,-19312.07,0.000291,7]
[391779111,1760801440782,-323.42763042,0.00029195,2]
[391779112,1760801440792,-1958.19,0.000292,2]
[391779113,1760801440803,-2500.0,0.00029264,5]
[391779114,1760801440813,-2500.0,0.00029264,5]
[391779115,1760801440823,-885.86649465,0.00029384,2]
[391779116,1760801440834,-500.0,0.00029388,5]
[391779117,1760801440843,-160.0,0.00029465,2]
[391779118,1760801440854,-3445.17228489,0.0002948,2]
[391779119,1760801440864,-587.0,0.00029535,2]
[391779120,1760801440874,-71108.05283662,0.0002956,2]
[391779121,1760801440884,-4784.2,0.00029589,4]
[391779122,1760801440894,-454.84595855,0.00029589,5]
[391779123,1760801440905,-3000.0,0.00029812,5]
[391779124,1760801440915,-3000.0,0.00029812,5]
[391779125,1760801440924,-349.97205228,0.00029889,7]
[391779126,1760801440934,-156.0,0.000299,120]
[391779127,1760801440944,-918.64355495,0.00029932,2]
[391779128,1760801440953,-186.27485546,0.00029935,5]
[391779129,1760801440963,-471.6509928,0.00029949,2]
[391779130,1760801440973,-160.0,0.00029976,2]
[391779131,1760801440983,-402.78104431,0.00029981,2]
[391779132,1760801440992,-500.0,0.00029991,7]
[391779133,1760801441002,-1000.0,0.0003,60]
[391779134,1760801441012,-1000.0,0.0003,2]
[391779135,1760801441023,-7290.11507159,0.0003,2]
[391779136,1760801441033,-27023.2777824,0.0003,15]
[391779137,1760801441043,-301.64994618,0.0003,120]
[391779138,1760801441052,-183.1820543,0.0003,120]
[391779139,1760801441062,-3419.15655011,0.0003,2]
[391779140,1760801441072,-785.81490251,0.0003,60]
[391779141,1760801441081,-5930.57785028,0.0003,2]
[391779142,1760801441090,-200.23333222,0.0003,2]
[391779143,1760801441100,-508.62,0.0003,5]
[391779144,1760801441109,-1000.0,0.0003,4]
[391779145,1760801441118,-1000.0,0.00030098,14]
[391779146,1760801441128,-112828.20400821,0.000301,3]
[391779147,1760801441138,-353.15870472,0.0003012,7]
[391779148,1760801441148,-285.48736586,0.0003013,2]
[391779149,1760801441157,-706.467674,0.00030137,120]
[391779150,1760801441167,-271.88742116,0.0003015,120]
[391779151,1760801441176,-670.4140214,0.0003022,2]
[391779152,1760801441186,-333.1090207,0.00030234,2]
[391779153,1760801441195,-150.0,0.00030254,2]
[391779154,1760801441205,-3445.17228489,0.00030272,2]
[391779155,1760801441215,-6749.6432152,0.00030282,2]
[391779157,1760801441224,-2162.0,0.00030306,2]
[391779158,1760801441233,-631.0,0.00030306,2]
[391779159,1760801441243,-418.168,0.00030306,2]
[391779160,1760801441253,-3525.84491105,0.0003036,5]
[391779161,1760801441262,-3500.0,0.0003036,5]
[391779162,1760801441274,-4690.27,0.000304,2]
[391779163,1760801441283,-952.63336648,0.0003048,2]
[391779164,1760801441293,-200.0,0.000305,120]
[391779165,1760801441303,-3445.17228489,0.00030891,2]
[391779166,1760801441313,-19312.07,0.000309,7]
[391779167,1760801441323,-1958.19,0.000309,2]
[391779168,1760801441333,-4000.0,0.00030908,5]
[391779169,1760801441343,-4784.2,0.00030958,6]
[391779170,1760801441353,-303.49061817,0.0003099,2]
[391779171,1760801441362,-5582.71363687,0.00031007,2]
[391779172,1760801441372,-987.88080104,0.00031028,2]
[391779173,1760801441382,-864.0,0.00031071,30]
[391779174,1760801441392,-159.97,0.00031215,15]
[391779175,1760801441401,-156.88,0.00031215,15]
[391779176,1760801441411,-402.72,0.00031215,15]
[391779177,1760801441422,-159.98423559,0.00031315,15]
[391779178,1760801441432,-156.88327755,0.00031315,15]
[391779179,1760801441442,-402.72,0.00031315,15]
[391779180,1760801441451,-244.40904541,0.00031342,30]
[391779181,1760801441462,-151.0,0.000314,20]
[391779182,1760801441591,-402.72,0.00031415,15]
[391779183,1760801441600,-471.6509928,0.00031425,2]
[391779184,1760801441610,-1686.75000372,0.00031456,5]
[391779185,1760801441619,-244.40904541,0.00031507,30]
[391779186,1760801441629,-402.72,0.00031515,15]
[391779187,1760801441638,-1024.43239068,0.00031576,2]
[391779188,1760801441648,-402.72,0.00031615,15]
[391779189,1760801441657,-244.40904541,0.00031644,30]
[391779190,1760801441666,-402.72,0.00031715,15]
[391779191,1760801441675,-154.491002,0.00031723,2]
[391779192,1760801441685,-244.40904541,0.00031808,30]
[391779193,1760801441694,-402.72,0.00031815,15]
[391779194,1760801441704,-3445.17228489,0.00031836,2]
[391779195,1760801441713,-1000.0,0.00031846,2]
[391779196,1760801441723,-1000.0,0.00031846,2]
[391779197,1760801441732,-1000.0,0.00031846,2]
[391779198,1760801441741,-1000.0,0.00031846,2]
[391779199,1760801441750,-1000.0,0.00031846,2]
[391779200,1760801441759,-1000.0,0.00031846,2]
[391779201,1760801441769,-1000.0,0.00031846,2]
[391779202,1760801441779,-1000.0,0.00031846,2]
[391779203,1760801441788,-1000.0,0.00031846,2]
[391779204,1760801441797,-1000.0,0.00031846,2]
[391779205,1760801441807,-317.7314,0.00031846,2]
[391779206,1760801441815,-168.0,0.00031898,2]
[391779207,1760801441825,-402.72,0.00031915,15]
[391779208,1760801441835,-244.40904541,0.00031945,30]
[391779209,1760801441844,-823.0,0.0003199,2]
[391779210,1760801441854,-300.0,0.00032,120]
[391779211,1760801441864,-4690.27,0.00032,2]
[391779212,1760801441873,-402.72,0.00032015,15]
[391779213,1760801441883,-264.0,0.00032017,2]
[391779214,1760801441893,-196.0,0.0003205,31]
[391779215,1760801441902,-1500.0,0.00032052,7]
[391779216,1760801441912,-800.0,0.00032078,2]
[391779217,1760801441923,-168.0,0.00032107,2]
[391779218,1760801441933,-244.40904541,0.0003211,30]
[391779219,1760801441942,-800.0,0.0003211,2]
[391779220,1760801441952,-402.72,0.00032115,15]
[391779221,1760801441963,-1062.33638913,0.00032124,2]
[391779222,1760801441972,-896.45707677,0.00032142,2]
[391779223,1760801441982,-160.0,0.00032148,3]
[391779224,1760801441992,-151.0,0.000322,15]
[391779225,1760801442002,-402.72,0.00032215,15]
[391779226,1760801442012,-244.40904541,0.00032247,30]
[391779227,1760801442023,-800.0,0.00032248,2]
[391779228,1760801442032,-800.0,0.00032286,2]
[391779229,1760801442041,-264.0,0.00032315,2]
[391779230,1760801442051,-402.72,0.00032315,15]
[391779231,1760801442061,-4784.2,0.00032328,8]
[391779232,1760801442070,-150.0,0.000324,26]
[391779233,1760801442079,-1958.19,0.000324,2]
[391779234,1760801442089,-150.0,0.00032404,2]
[391779235,1760801442099,-244.40904541,0.00032411,30]
[391779236,1760801442109,-3445.17228489,0.00032412,2]
[391779237,1760801442119,-402.72,0.00032415,15]
[391779238,1760801442128,-6293.1151869,0.00032432,2]
[391779239,1760801442138,-2880.83,0.000325,32]
[391779240,1760801442147,-19312.07,0.000325,7]
[391779241,1760801442157,-402.72,0.00032515,15]
[391779242,1760801442166,-244.40904541,0.00032548,30]
[391779243,1760801442175,-288.6801494,0.00032588,30]
[391779244,1760801442185,-153.0,0.00032588,30]
[391779245,1760801442194,-153.0,0.00032588,30]
[391779246,1760801442204,-154.491002,0.00032597,7]
[391779247,1760801442213,-600.0,0.00032611,2]
[391779248,1760801442223,-402.72,0.00032615,15]
[391779249,1760801442232,-1101.64283553,0.00032672,2]
[391779250,1760801442241,-244.40904541,0.00032712,30]
[391779251,1760801442250,-168.0,0.00032713,2]
[391779252,1760801442259,-402.72,0.00032715,15]
[391779253,1760801442270,-156.0,0.000328,120]
[391779254,1760801442280,-264.0,0.00032813,2]
[391779255,1760801442289,-402.72,0.00032815,15]
[391779256,1760801442298,-244.40904541,0.00032849,30]
[391779257,1760801442309,-3445.17228489,0.00032858,2]
[391779258,1760801442318,-1000.0,0.0003287,2]
[391779259,1760801442328,-1000.0,0.0003287,2]
[391779260,1760801442338,-1000.0,0.0003287,2]
[391779261,1760801442347,-1000.0,0.0003287,2]
[391779262,1760801442357,-1000.0,0.0003287,2]
[391779263,1760801442367,-1000.0,0.0003287,2]
[391779264,1760801442376,-1000.0,0.0003287,2]
[391779265,1760801442387,-1000.0,0.0003287,2]
[391779266,1760801442397,-1000.0,0.0003287,2]
[391779267,1760801442407,-1000.0,0.0003287,2]
[391779268,1760801442419,-1500.0,0.00032874,7]
[391779269,1760801442429,-246.20585699,0.00032877,2]
[391779270,1760801442439,-6293.1151869,0.00032878,2]
[391779271,1760801442449,-471.6509928,0.000329,2]
[391779272,1760801442459,-402.72,0.00032915,60]
[391779273,1760801442468,-600.0,0.00032951,2]
[391779274,1760801442478,-500.0,0.0003297,10]
[391779275,1760801442488,-3445.17228489,0.0003297,2]
[391779276,1760801442499,-3445.17228489,0.0003298,2]
[391779277,1760801442509,-6890.34456978,0.0003299,2]
[391779278,1760801442519,-100000.0,0.00033,120]
[391779279,1760801442529,-853.01,0.00033,2]
[391779280,1760801442539,-160.0,0.00033,120]
[391779281,1760801442549,-160.0,0.00033,30]
[391779282,1760801442559,-1000.0,0.00033,2]
[391779283,1760801442569,-1000.0,0.00033,2]
[391779284,1760801442579,-1000.0,0.00033,2]
[391779285,1760801442589,-1000.0,0.00033,2]
[391779286,1760801442599,-1000.0,0.00033,2]
[391779287,1760801442609,-402.78104431,0.00033,120]
[391779288,1760801442619,-1007.94672532,0.00033,60]
[391779289,1760801442629,-153.69168577,0.00033,5]
[391779290,1760801442640,-150.0,0.00033,10]
[391779291,1760801442651,-5000.0,0.00033006,3]
[391779292,1760801442661,-244.40904541,0.00033014,30]
[391779293,1760801442670,-402.72,0.00033015,60]
[391779294,1760801442679,-402.72,0.00033115,60]
[391779295,1760801442689,-500.0,0.0003312,10]
[391779296,1760801442698,-500.0,0.0003312,30]
[391779297,1760801442707,-356.51786613,0.0003312,10]
[391779298,1760801442716,-264.0,0.00033155,7]
[391779299,1760801442726,-168.0,0.00033162,2]
[391779300,1760801442736,-398.338578,0.00033165,2]
[391779301,1760801442746,-3445.17228489,0.0003318,2]
[391779302,1760801442755,-166.94723962,0.000332,117]
[391779303,1760801442767,-402.72,0.00033215,60]
[391779304,1760801442777,-1142.40362045,0.0003322,2]
[391779305,1760801442786,-264.0,0.00033247,7]
[391779306,1760801442796,-335.10711861,0.00033261,7]
[391779307,1760801442806,-600.0,0.00033291,2]
[391779308,1760801442815,-4690.27,0.000333,14]
[391779309,1760801442825,-2162.0,0.00033306,2]
[391779310,1760801442834,-631.0,0.00033306,2]
[391779311,1760801442843,-411.0,0.00033306,2]
[391779312,1760801442852,-402.72,0.00033315,60]
[391779313,1760801442862,-1064.87246166,0.0003335,4]
[391779314,1760801442875,-333.1090207,0.0003336,2]
[391779315,1760801442889,-264.0,0.00033395,7]
[391779316,1760801442901,-402.72,0.00033415,60]
[391779318,1760801442913,-849.65503258,0.00033451,2]
[391779319,1760801442926,-6749.6432152,0.00033455,2]
[391779322,1760801442938,-168.0,0.00033468,2]
[391779324,1760801442947,-402.72,0.00033515,60]
[391779326,1760801442958,-800.0,0.00033538,2]
[391779328,1760801442969,-800.0,0.0003357,2]
[391779331,1760801442981,-800.0,0.0003357,2]
[391779333,1760801442992,-800.0,0.00033591,2]
[391779335,1760801443003,-168.0,0.00033611,2]
[391779337,1760801443016,-402.72,0.00033615,60]
[391779340,1760801443028,-800.0,0.00033619,2]
[391779342,1760801443039,-1404.1837995,0.0003362,2]
[391779343,1760801443050,-264.0,0.00033627,2]
[391779344,1760801443061,-600.0,0.0003363,2]
[391779345,1760801443072,-154.491002,0.00033657,15]
[391779346,1760801443084,-264.0,0.00033661,7]
[391779348,1760801443100,-800.0,0.00033666,2]
[391779349,1760801443114,-220.0,0.00033673,5]
[391779350,1760801443125,-160.0,0.00033682,4]
[391779351,1760801443137,-800.0,0.00033686,2]
[391779352,1760801443147,-1500.0,0.00033696,7]
[391779353,1760801443159,-4784.2,0.00033698,120]
[391779354,1760801443173,-1017.24,0.000337,10]
[391779355,1760801443184,-10516.34909447,0.00033715,10]
[391779356,1760801443195,-9562.34223385,0.00033715,10]
[391779357,1760801443206,-402.72,0.00033715,60]
[391779358,1760801443218,-800.0,0.00033758,2]
[391779359,1760801443229,-1184.6725544,0.00033768,2]
[391779360,1760801443241,-12500.0,0.00033772,10]
[391779362,1760801443252,-1958.19,0.000338,2]
[391779364,1760801443263,-402.72,0.00033815,60]
[391779365,1760801443274,-264.0,0.00033821,2]
[391779366,1760801443283,-800.0,0.00033824,2]
[391779367,1760801443294,-6509.25669252,0.00033855,2]
[391779368,1760801443304,-691.72466118,0.0003386,30]
[391779369,1760801443316,-2000.0,0.000339,11]
[391779370,1760801443327,-990.0,0.000339,3]
[391779371,1760801443338,-990.0,0.000339,2]
[391779372,1760801443350,-26280.86291188,0.000339,7]
[391779373,1760801443362,-1500.0,0.000339,14]
[391779374,1760801443373,-205.633233,0.000339,2]
[391779375,1760801443385,-402.72,0.00033915,60]
[391779376,1760801443396,-800.0,0.00033918,2]
[391779377,1760801443407,-706.92,0.0003395,60]
[391779379,1760801443420,-213.53566976,0.0003395,60]
[391779381,1760801443433,-500.0,0.0003395,7]
[391779383,1760801443445,-500.0,0.0003395,2]
[391779385,1760801443458,-500.0,0.0003395,15]
[391779388,1760801443470,-500.0,0.0003395,7]
[391779389,1760801443480,-500.0,0.0003395,30]
[391779391,1760801443491,-279.48,0.0003395,15]
[391779393,1760801443502,-5000.0,0.00033951,60]
[391779395,1760801443513,-5000.0,0.00033951,60]
[391779397,1760801443526,-5000.0,0.00033951,60]
[391779399,1760801443537,-5000.0,0.00033951,60]
[391779402,1760801443548,-5000.0,0.00033951,60]
[391779404,1760801443559,-5000.0,0.00033951,60]
[391779406,1760801443571,-221.23451577,0.00033951,4]
[391779408,1760801443583,-170.51771704,0.00033951,120]
[391779411,1760801443595,-356.52,0.00033951,60]
[391779413,1760801443606,-994.06023727,0.00033952,60]
[391779415,1760801443617,-800.0,0.00033953,2]
[391779417,1760801443628,-182.037,0.00033953,2]
[391779420,1760801443638,-1137.43864,0.00033955,60]
[391779423,1760801443649,-5000.0,0.00033955,60]
[391779426,1760801443662,-5000.0,0.00033955,60]
[391779428,1760801443674,-5000.0,0.00033955,60]
[391779430,1760801443684,-6457.0,0.00033955,60]
[391779432,1760801443695,-10000.0,0.00033955,2]
[391779434,1760801443705,-10000.0,0.00033955,2]
[391779436,1760801443715,-861.0,0.00033955,2]
[391779438,1760801443725,-10000.0,0.00033955,2]
[391779440,1760801443736,-10000.0,0.00033955,2]
[391779442,1760801443748,-10000.0,0.00033955,2]
[391779444,1760801443758,-800.0,0.00033956,2]
[391779446,1760801443769,-835.76,0.00033963,30]
[391779448,1760801443779,-1998.499999,0.00033963,2]
[391779450,1760801443790,-338.56650527,0.00033963,5]
[391779452,1760801443800,-150.0,0.00033963,2]
[391779454,1760801443810,-1105.9,0.00033963,30]
[391779456,1760801443821,-1415.44025984,0.00033963,7]
[391779459,1760801443832,-83815.07354198,0.00033963,2]
[391779461,1760801443842,-1197.72320147,0.00033963,2]
[391779463,1760801443853,-2000.0,0.00033963,30]
[391779465,1760801443863,-33149.0,0.00033963,30]
[391779467,1760801443873,-234583.33670376,0.00033963,20]
[391779469,1760801443883,-475.6701749,0.00033963,30]
[391779471,1760801443894,-1305.70136534,0.00033963,7]
[391779473,1760801443906,-22703.60989424,0.00033963,2]
[391779476,1760801443917,-51811.5376527,0.00033963,2]
[391779478,1760801443927,-164.25622358,0.00033963,30]
[391779480,1760801443939,-248.44265289,0.00033963,30]
[391779482,1760801443950,-680.84933739,0.00033963,30]
[391779484,1760801443960,-1500.0,0.00033963,3]
[391779486,1760801443971,-736.87412277,0.00033963,30]
[391779488,1760801443981,-518.06643398,0.00033963,30]
[391779490,1760801443992,-908.61590984,0.00033963,30]
[391779493,1760801444002,-1001.03051981,0.00033963,5]